Workbook

Sheet 总表
A1: 附件1
A2: 2020年公共卫生体系建设和重大疫情防控救治体系建设资金(第二批）分配表
A3: 金额单位：万元
A4: 单位 | B4: 合计 | C4: 公共卫生体系建设 | G4: 重大疫情防控救治体系建设
C5: 小计 | D5: 新冠肺炎等重点传染病监测和能力建设 | E5: 基层疫情防控能力提升 | F5: 基层呼吸系统疾病早期筛查干预能力提升 | G5: 基层医疗卫生机构重大疫情救治能力人才培训
A6: 市疾病预防控制中心 | B6: =SUM(C6+G6) -> 192.96 | C6: =SUM(D6:F6) -> 192.96 | D6: 177.96 | E6: 15
A7: 市职业病（慢性病）院 | B7: =SUM(C7+G7) -> 14 | C7: 14 | D7: 14
A8: 市精神卫生中心 | B8: 39 | C8: 39 | E8: 39
A9: 源城区 | B9: 50 | C9: 39 | F9: 39 | G9: 11
A10: 东源县 | B10: 184.05 | C10: 162.05 | D10: 39.8 | E10: 15 | F10: 107.25 | G10: 22
A11: 和平县 | B11: 293.8 | C11: 282.8 | D11: 189.8 | E11: 15 | F11: 78 | G11: 11
A12: 江东新区 | B12: 20.75 | C12: 9.75 | F12: 9.75 | G12: 11
A13: 连平县 | B13: 26 | C13: 15 | E13: 15 | G13: 11
A14: 龙川县 | B14: 37 | C14: 15 | E14: 15 | G14: 22
A15: 紫金县 | B15: 37 | C15: 15 | E15: 15 | G15: 22
A16: 合计 | B16: 894.56 | C16: 784.56 | D16: =SUM(D6:D15) -> 421.56 | E16: =SUM(E6:E15) -> 129 | F16: =SUM(F6:F15) -> 234 | G16: =SUM(G9:G15) -> 110
A17: 注：本表是《广东省财政厅关于安排2020年公共卫生体系建设和重大疫情防控救治体系建设中央补助资金的通知》（粤财社〔2020〕163号）中的补助资金分配总表进行分配。

Sheet 附件1-1重点传染病监测能力建设项目
A1: 附件1-1
A2: 2020年新冠肺炎等重点传染病监测和能力建设项目资金测算表
S3: 金额：万元
A4: 项目单位 | B4: 本次补助金额 | C4: 1.重点传染病监测 | G4: 2.新冠肺炎常规监测 | J4: 3.重点场所（人、环境、食品）新冠监测 | M4: 4.现场流调信息采集移动终端设备配置 | P4: 5.实验室能力建设
C5: 任务数 | F5: 补助金额 | G5: 监测哨点任务数（份） | H5: 新冠检测数(含多病原）（项次） | I5: 补助金额 | J5: 监测哨点任务数（份） | K5: 实验室检测数(含多病原）（项次） | L5: 补助金额 | M5: 任务单位数量 | N5: 补助标准 | O5: 补助金额 | P5: 疾控实验室能力建设 | S5: 结核病、性病防治实验室能力建设
C6: 监测病种项目数 | D6: 监测哨点任务数（份） | E6: 实验室检测数（项次） | P6: 任务单位数量 | Q6: 不具备核酸检测能力单位数量 | R6: 补助金额 | S6: 任务单位数量 | T6: 补助金额
A7: 合计 | B7: =F7+I7+L7+O7+R7+T7 -> 421.56 | C7: 7 | D7: 7850 | E7: 7922 | F7: =ROUND(D7*0.0028+E7*0.008,2) -> 85.36 | G7: 1300 | H7: 1300 | I7: =ROUND(H7*0.032,2) -> 41.6 | J7: 1800 | K7: 1800 | L7: =ROUND(K7*0.032,2) -> 57.6 | M7: 3 | N7: 15 | O7: =M7*N7 -> 45 | P7: 3 | Q7: 1 | R7: 150 | S7: 3 | T7: =S7*14 -> 42
A8: 市疾控中心 | B8: =F8+I8+L8+O8 -> 177.96 | C8: 5 | D8: 5850 | E8: 5922 | F8: =ROUND(D8*0.0028+E8*0.008,2) -> 63.76 | G8: 1300 | H8: 1300 | I8: =ROUND(H8*0.032,2) -> 41.6 | J8: 1800 | K8: 1800 | L8: =ROUND(K8*0.032,2) -> 57.6 | M8: 1 | N8: 15 | O8: 15 | P8: 1
A9: 市慢病院 | B9: =T9 -> 14.00 | S9: 1 | T9: 14
A10: 东源县疾控中心 | B10: =F10+O10 -> 25.80 | C10: 1 | D10: 1000 | E10: 1000 | F10: 10.80 | M10: 1 | N10: 15 | O10: 15 | P10: 1
A11: 东源县慢病院 | B11: 14.00 | S11: 1 | T11: 14
A12: 和平县疾控中心 | B12: =F12+O12+R12 -> 175.80 | C12: 1 | D12: 1000 | E12: 1000 | F12: 10.80 | M12: 1 | N12: 15 | O12: 15 | P12: 1 | Q12: 1 | R12: 150
A13: 和平县慢病院 | B13: 14.00 | S13: 1 | T13: 14
A14: 备注： 1. 根据《新冠肺炎等重点传染病监测和能力建设管理工作指南》，重点传染病监测与能力提升项目包含22个传染病网络监测项目，28个传染病哨点医院监测项目，37个哨点疾控机构监测项目，137个基层疫情防控能力提升项目，本表中根据国家有关监测项目要求分解汇总了各类传染病的监测哨点任务数和监测（检测）样本任务量。 2.重点传染病监测包括了登革热、鼠疫、布病、狂犬病、流感、SARS人禽流感、手足口病等传染病监测，致病菌网络监测和医院感染监测。补助经费用于项目管理、样本采集、运送和实验室检测。测算标准：采样送样0.0028万元/份*任务数；实验室检测0.008万元/个*任务数。 3.新冠肺炎常规监测项目任务量和重点场所（人、环境、食品）新冠病毒监测项目任务量省下达我市全市监测量，各县区监测量由市疾控中心根据疫情防控实际需要再行分配，也可由各县区负责样本采集、运送，由市疾控中心统一检测，补助经费由市疾控中心根据实际工作量进行再分配。补助经费用于样本采集、运送和新冠病毒实验室检测（含多病原检测），测算标准：0.032万元/份*任务数。 4.现场流调信息采集移动终端设备配置项目补助经费用于开展现场流调信息采集各项设备购置，测算标准：广州、深圳、佛山按照10万元/单位*任务数；珠海、东莞、中山（未设置县区疾控中心）按照20万元/单位*任务数；其余15个地市按照15万元/单位*任务数。 6.实验室能力建设。 ⑴疾控中心实验室能力建设项目。重点补助目前尚未具备新冠病毒核酸检测能力的64个县级疾控中心（我市是和平县疾控中心）开展能力建设，配齐仪器设备，使其全部具备开展核酸检测能力。测算标准：150万/单位*任务数。 ⑵结核病、性病防治机构实验室能力建设项目。地市和县区级防治机构实验室每间补助14万元，用于实验室能力提升。

Sheet 附件1-2基层疫情防控能力提升项目
A1: 附件1-2
A2: 2020年基层疫情防控能力提升项目资金测算表
J3: 金额：万元
A4: 项目单位 | B4: 合计 | C4: 心理危机干预人员培训 | H4: 基层疾控人才能力建设（含现场流行病学调查，实验室检测能力，信息技术培训和短期人才培训）
C5: 基层医疗卫生机构的培训人数 | D5: 县级层面的培训人数 | E5: 市级层面的培训人数 | F5: 培训人数合计 | G5: 总费用（每人培训4天，每人天培训费用500元） | H5: 任务单位数量 | I5: 补助标准 | J5: 补助金额
A6: 合计 | B6: =G6+J6 -> 129.00 | C6: 105 | D6: 60 | E6: 30 | F6: =C6+D6+E6 -> 195 | G6: =ROUND(F6*4*500/10000,2) -> 39.00 | H6: 6 | I6: 15 | J6: =H6*I6 -> 90.00
A7: 市精神卫生中心 | B7: =G7 -> 39.00 | C7: 105 | D7: 60 | E7: 30 | F7: =C7+D7+E7 -> 195 | G7: 39.00
A8: 市疾控中心 | B8: =J8 -> 15.00 | H8: 1 | I8: 15 | J8: 15.00
A9: 东源县疾控中心 | B9: 15.00 | H9: 1 | I9: 15 | J9: 15.00
A10: 连平县疾控中心 | B10: 15.00 | H10: 1 | I10: 15 | J10: 15.00
A11: 龙川县疾控中心 | B11: 15.00 | H11: 1 | I11: 15 | J11: 15.00
A12: 和平县疾控中心 | B12: 15.00 | H12: 1 | I12: 15 | J12: 15.00
A13: 紫金县疾控中心 | B13: 15.00 | H13: 1 | I13: 15 | J13: 15.00
A14: 说明： 1.心理危机干预队伍培训：每个地市培训三个层面人员：一是每个基层医疗卫生机构培训心理危机干预人员1名；二是每个县培训县级层面心理危机干预人员10名；三是每个市培训市级层面心理危机干预人员30名。 2.基层疾控人才能力建设，测算标准：广州、深圳、佛山7万元/个*任务数；珠海、东莞、中山没有设置区县疾控中心14万元/个*任务数；其他15个地市15万元/个*任务数。

Sheet 附件1-3基层呼吸系统疾病早筛干预项目
A1: 附件1-3
A2: 2020年基层呼吸系统疾病早期筛查干预能力提升项目资金测算表
J3: 金额单位：万元
A4: 项目单位 | B4: 本次补助金额 | C4: 项目管理费用 | D4: 慢阻肺监测及能力提升试点补助
D5: 乡镇卫生院和社区卫生服务中心总数 | E5: 50%的乡镇卫生院和社区卫生服务中心试点数量 | F5: 县级疾控机构总数 | G5: 50%的县级疾控机构试点数量（选择部分市县） | H5: 试点总数 | I5: 补助标准 | J5: 补助金额
A6: 合计 | B6: =C6+J6 -> 234.00 | D6: 48 | E6: =ROUNDDOWN(D6/2,0) -> 24 | F6: 2 | H6: =SUM(G6,E6) -> 24 | I6: 9.75 | J6: =H6*I6 -> 234.00
A7: 源城区 | B7: =J7 -> 39.00 | D7: 8 | E7: 4 | H7: 4 | I7: 9.75 | J7: 39.00
A8: 东源县 | B8: 107.25 | D8: 22 | E8: 11 | H8: 11 | I8: 9.75 | J8: 107.25
A9: 和平县 | B9: 78.00 | D9: 17 | E9: 8 | H9: 8 | I9: 9.75 | J9: 78.00
A10: 江东新区 | B10: 9.75 | D10: 1 | E10: 1 | H10: 1 | I10: 9.75 | J10: 9.75
A11: 备注：1.安排广州医科大学附属第一医院呼吸病研究所项目管理费用100万元，负责我省项目工作的技术指导和运转管理。 2.粤东粤西粤北地区，惠州、江门和肇庆等珠三角财力薄弱地区，每个试点机构补助9.75万元（含设备和人员培训费用）；珠三角其余地区，每个试点机构补助5万元（含设备和人员培训费用）。 3.江东新区的临江镇、古竹镇卫生院按行政区域划入紫金县，请江东新区直接紫金县对接确定试点数量。

Sheet 附件1-4基层医疗卫生机构重大疫情救治能力人才培训项目
A1: 附件1-4
A2: 2020年基层医疗卫生机构重大疫情救治能力人才培训项目资金分配表
A3: 金额单位：万元
A4: 县区 | B4: 基层医疗机构补助数（个） | C4: 补助标准（万元/家机构） | D4: 补助金额 | E4: 本次下达金额
A5: 源城区 | B5: 1 | C5: 11.00 | D5: =B5*C5 -> 11.00 | E5: =D5 -> 11
A6: 和平县 | B6: 1 | C6: 11.00 | D6: 11.00 | E6: =D6 -> 11
A7: 东源县 | B7: 2 | C7: 11.00 | D7: 22.00 | E7: 22
A8: 紫金县 | B8: 2 | C8: 11.00 | D8: 22.00 | E8: 22
A9: 龙川县 | B9: 2 | C9: 11.00 | D9: 22.00 | E9: 22
A10: 连平县 | B10: 1 | C10: 11.00 | D10: 11.00 | E10: 11
A11: 江东新区 | B11: 1 | C11: 11.00 | D11: 11.00 | E11: 11
A12: 合计 | B12: =SUM(B5:B11) -> 10 | C12: _ | D12: =SUM(D5:D11) -> 110.00 | E12: =SUM(E5:E11) -> 110
A13: 说明:根据上级确定的项目数和补助标准，支持我市10家基层医疗卫生机构达到优质服务基层行推荐标准，每家补助11万元，共计110万元。名额分配为纳入省中心卫生院升级改造项目的龙川县麻布岗中心卫生院、紫金县蓝塘中心卫生院、东源县船塘中心卫生院各1个名额，此外全市五县二区各1个名额。
